[Event "*** Titled Tuesday Blitz"]
[Site "Chess.com"]
[Date "2019.03.05"]
[Round "10"]
[White "ChessWarrior7197"]
[Black "Pechen_Yeltsina"]
[Result "1-0"]
[WhiteElo "2844"]
[BlackElo "2648"]
[TimeControl "180+2"]
[EndTime "15:28:40 PST"]
[Termination "ChessWarrior7197 won by checkmate"]

1. e4 {[%clk 0:03:01.9]} 1... g6 {[%clk 0:02:59.9]} 2. d4 {[%clk 0:03:01.3]}
2... Bg7 {[%clk 0:03:01.2]} 3. h4 {[%clk 0:03:00.8]} 3... h6 {[%clk 0:03:01.1]}
4. h5 {[%clk 0:03:00.5]} 4... g5 {[%clk 0:03:02]} 5. Nc3 {[%clk 0:02:59.5]} 5...
d6 {[%clk 0:03:03.2]} 6. Be3 {[%clk 0:02:59]} 6... Nd7 {[%clk 0:03:02]} 7. Be2
{[%clk 0:02:57.9]} 7... a6 {[%clk 0:03:02.6]} 8. Nf3 {[%clk 0:02:56.6]} 8... b5
{[%clk 0:03:02.2]} 9. Qd2 {[%clk 0:02:49.4]} 9... Bb7 {[%clk 0:03:03.2]} 10.
O-O-O {[%clk 0:02:47.8]} 10... b4 {[%clk 0:02:54.7]} 11. Nd5 {[%clk 0:02:47.4]}
11... a5 {[%clk 0:02:56.1]} 12. Nxg5 {[%clk 0:02:34.7]} 12... Bxd5 {[%clk
0:02:38.2]} 13. exd5 {[%clk 0:02:31.9]} 13... hxg5 {[%clk 0:02:39.6]} 14. Bxg5
{[%clk 0:02:32.7]} 14... Bh6 {[%clk 0:02:30.9]} 15. f4 {[%clk 0:02:33]} 15...
Ndf6 {[%clk 0:02:27.5]} 16. Bf3 {[%clk 0:02:32.6]} 16... Qd7 {[%clk 0:02:24.6]}
17. Rh4 {[%clk 0:02:30.6]} 17... Nh7 {[%clk 0:02:00.8]} 18. Bxh6 {[%clk
0:02:22.9]} 18... Nxh6 {[%clk 0:02:02.7]} 19. g4 {[%clk 0:02:23.4]} 19... Rg8
{[%clk 0:01:53.9]} 20. g5 {[%clk 0:02:24.1]} 20... Nf5 {[%clk 0:01:46.1]} 21.
Bg4 {[%clk 0:02:24.8]} 21... e6 {[%clk 0:01:47.5]} 22. dxe6 {[%clk 0:02:22.1]}
22... fxe6 {[%clk 0:01:49.4]} 23. Rh3 {[%clk 0:02:02.2]} 23... O-O-O {[%clk
0:01:41]} 24. d5 {[%clk 0:02:02.5]} 24... Rdf8 {[%clk 0:01:29.4]} 25. Qd3 {[%clk
0:01:58.1]} 25... Kb7 {[%clk 0:01:00.4]} 26. g6 {[%clk 0:01:52.6]} 26... Nf6
{[%clk 0:00:31.3]} 27. dxe6 {[%clk 0:01:52.2]} 27... Qxe6 {[%clk 0:00:33.2]} 28.
Bxf5 {[%clk 0:01:51.5]} 28... Qxa2 {[%clk 0:00:34.7]} 29. Qb3 {[%clk 0:01:35.6]}
29... Qxb3 {[%clk 0:00:22.3]} 30. cxb3 {[%clk 0:01:37.5]} 30... Ne8 {[%clk
0:00:21.4]} 31. Be6 {[%clk 0:01:35]} 31... Rh8 {[%clk 0:00:20.7]} 32. h6 {[%clk
0:01:34.8]} 32... Rf6 {[%clk 0:00:08.7]} 33. g7 {[%clk 0:01:32.6]} 33... Nxg7
{[%clk 0:00:08.3]} 34. hxg7 {[%clk 0:01:33]} 34... Rxh3 {[%clk 0:00:10.2]} 35.
g8=Q {[%clk 0:01:22.9]} 35... Rh2 {[%clk 0:00:11.5]} 36. Qc8+ {[%clk 0:01:20.8]}
36... Kb6 {[%clk 0:00:12]} 37. Qb8+ {[%clk 0:01:22]} 37... Kc6 {[%clk
0:00:12.5]} 38. Bd5+ {[%clk 0:01:20.8]} 38... Kd7 {[%clk 0:00:13.8]} 39. Re1
{[%clk 0:01:21.7]} 39... c5 {[%clk 0:00:08.9]} 40. Qe8+ {[%clk 0:01:18.6]} 40...
Kc7 {[%clk 0:00:09.9]} 41. Re7+ {[%clk 0:01:20.5]} 41... Kb6 {[%clk 0:00:11.2]}
42. Qc6# {[%clk 0:01:22.4]} 1-0

[Event "*** Titled Tuesday Blitz"]
[Site "Chess.com"]
[Date "2019.03.05"]
[Round "10"]
[White "b_6"]
[Black "DanielNaroditsky"]
[Result "1/2-1/2"]
[WhiteElo "2448"]
[BlackElo "2962"]
[TimeControl "180+2"]
[EndTime "15:28:44 PST"]
[Termination "Game drawn by agreement"]

1. d4 {[%clk 0:03:01.9]} 1... Nf6 {[%clk 0:03:01.1]} 2. Bf4 {[%clk 0:03:02.9]}
2... h6 {[%clk 0:03:01.7]} 3. e3 {[%clk 0:03:01]} 3... g5 {[%clk 0:03:03.1]} 4.
Bg3 {[%clk 0:03:02.1]} 4... Bg7 {[%clk 0:03:04.8]} 5. Nd2 {[%clk 0:02:59.5]}
5... d6 {[%clk 0:03:06.2]} 6. h4 {[%clk 0:02:50.8]} 6... g4 {[%clk 0:03:05.9]}
7. h5 {[%clk 0:02:50.6]} 7... c5 {[%clk 0:03:07.3]} 8. c3 {[%clk 0:02:51.3]}
8... Nc6 {[%clk 0:03:08.1]} 9. Bd3 {[%clk 0:02:30.9]} 9... e5 {[%clk 0:03:09.1]}
10. Ne2 {[%clk 0:02:22.5]} 10... Be6 {[%clk 0:03:07.4]} 11. dxe5 {[%clk
0:02:11]} 11... dxe5 {[%clk 0:03:08.5]} 12. Ne4 {[%clk 0:02:06.7]} 12... Qe7
{[%clk 0:03:09.8]} 13. Qa4 {[%clk 0:02:00.3]} 13... O-O-O {[%clk 0:02:52.6]} 14.
O-O-O {[%clk 0:01:55.2]} 14... Rxd3 {[%clk 0:02:48.2]} 15. Rxd3 {[%clk
0:01:48.8]} 15... c4 {[%clk 0:02:45.8]} 16. Nd6+ {[%clk 0:01:49.5]} 16... Kb8
{[%clk 0:02:46.1]} 17. Rdd1 {[%clk 0:01:47.4]} 17... a6 {[%clk 0:02:41.7]} 18.
Qc2 {[%clk 0:01:23.1]} 18... Rd8 {[%clk 0:02:38.5]} 19. Nf5 {[%clk 0:01:23.6]}
19... Bxf5 {[%clk 0:02:35.8]} 20. Rxd8+ {[%clk 0:01:20.5]} 20... Qxd8 {[%clk
0:02:37.6]} 21. Qxf5 {[%clk 0:01:21.6]} 21... Qd3 {[%clk 0:02:38.6]} 22. Bxe5+
{[%clk 0:01:12.7]} 22... Nxe5 {[%clk 0:02:36.3]} 23. Qxe5+ {[%clk 0:01:13.8]}
23... Ka8 {[%clk 0:02:38]} 24. Nf4 {[%clk 0:01:13]} 24... Qd8 {[%clk 0:02:35.7]}
25. Rd1 {[%clk 0:01:11.9]} 25... Qf8 {[%clk 0:02:34]} 26. Qd6 {[%clk 0:01:08.6]}
26... Qxd6 {[%clk 0:02:32.9]} 27. Rxd6 {[%clk 0:01:10.5]} 27... Ne4 {[%clk
0:02:34.4]} 28. Rd7 {[%clk 0:01:04.8]} 28... Nxf2 {[%clk 0:02:35.1]} 29. Rxf7
{[%clk 0:01:05.5]} 29... Be5 {[%clk 0:02:36.5]} 30. Kd2 {[%clk 0:00:48.6]} 30...
Ne4+ {[%clk 0:02:37.7]} 31. Ke2 {[%clk 0:00:47.8]} 31... Ng3+ {[%clk 0:02:38.2]}
32. Kf2 {[%clk 0:00:49]} 32... Ne4+ {[%clk 0:02:39.5]} 33. Ke1 {[%clk
0:00:50.2]} 33... Bf6 {[%clk 0:02:36.7]} 34. Nd5 {[%clk 0:00:48.5]} 34... Bh4+
{[%clk 0:02:36.9]} 35. Kd1 {[%clk 0:00:46]} 35... Nf2+ {[%clk 0:02:34.8]} 36.
Ke2 {[%clk 0:00:46.8]} 36... Nd3 {[%clk 0:02:36]} 37. b3 {[%clk 0:00:43.7]}
37... Ne5 {[%clk 0:02:23.5]} 38. Rh7 {[%clk 0:00:40]} 38... Bg5 {[%clk
0:02:23.5]} 39. Nf4 {[%clk 0:00:38.6]} 39... cxb3 {[%clk 0:02:23.6]} 40. axb3
{[%clk 0:00:39.3]} 40... a5 {[%clk 0:02:19.5]} 41. Ne6 {[%clk 0:00:40.5]} 41...
Bf6 {[%clk 0:02:19.4]} 42. Rxh6 {[%clk 0:00:39.1]} 42... Nd7 {[%clk 0:02:21]}
43. Rh7 {[%clk 0:00:36.6]} 43... Ne5 {[%clk 0:02:21.4]} 44. h6 {[%clk
0:00:35.6]} 44... Ka7 {[%clk 0:02:23.2]} 45. Nd4 {[%clk 0:00:35.4]} 45... Ka6
{[%clk 0:02:24.1]} 46. Rc7 {[%clk 0:00:32.4]} 46... b5 {[%clk 0:02:24.2]} 47. h7
{[%clk 0:00:31.7]} 47... a4 {[%clk 0:02:25.8]} 48. bxa4 {[%clk 0:00:32.2]} 48...
bxa4 {[%clk 0:02:27.7]} 49. Nc6 {[%clk 0:00:30.9]} 49... Kb6 {[%clk 0:02:29.2]}
50. Nxe5 {[%clk 0:00:16.7]} 50... Kxc7 {[%clk 0:02:30.7]} 51. Nxg4 {[%clk
0:00:09.3]} 51... Bxc3 {[%clk 0:02:29.5]} 52. Kd3 {[%clk 0:00:09.9]} 52... Bg7
{[%clk 0:02:30.7]} 53. Kc2 {[%clk 0:00:09.8]} 53... Kd6 {[%clk 0:02:30.2]} 54.
Nh6 {[%clk 0:00:08]} 54... Ke6 {[%clk 0:02:28.1]} 55. Ng4 {[%clk 0:00:07.9]}
55... Kf5 {[%clk 0:02:28.9]} 56. Nf2 {[%clk 0:00:08.6]} 56... Kg6 {[%clk
0:02:27.4]} 57. Kb1 {[%clk 0:00:07.5]} 57... Kxh7 {[%clk 0:02:28.3]} 58. Ka2
{[%clk 0:00:09.2]} 58... Bf8 {[%clk 0:02:29]} 59. Nd3 {[%clk 0:00:08.4]} 59...
Kg6 {[%clk 0:02:30.6]} 60. Nb2 {[%clk 0:00:09.4]} 60... Kf5 {[%clk 0:02:32.3]}
61. Nxa4 {[%clk 0:00:10.3]} 61... Ke4 {[%clk 0:02:34]} 62. Nc3+ {[%clk
0:00:09.1]} 62... Kxe3 {[%clk 0:02:35.6]} 63. Nd5+ {[%clk 0:00:10.8]} 63... Ke4
{[%clk 0:02:36.1]} 64. Nf6+ {[%clk 0:00:08.4]} 64... Kf4 {[%clk 0:02:37.5]} 65.
Nh5+ {[%clk 0:00:09.5]} 1/2-1/2

[Event "*** Titled Tuesday Blitz"]
[Site "Chess.com"]
[Date "2019.03.05"]
[Round "10"]
[White "ENEASZ"]
[Black "MikaelyanArman"]
[Result "0-1"]
[WhiteElo "2393"]
[BlackElo "2717"]
[TimeControl "180+2"]
[EndTime "15:28:48 PST"]
[Termination "MikaelyanArman won on time"]

1. e4 {[%clk 0:03:01.9]} 1... d6 {[%clk 0:03:00.7]} 2. d4 {[%clk 0:03:00.9]}
2... Nf6 {[%clk 0:03:02.3]} 3. Nc3 {[%clk 0:03:02.2]} 3... g6 {[%clk 0:03:03.8]}
4. f4 {[%clk 0:03:02.8]} 4... Bg7 {[%clk 0:03:05.1]} 5. Nf3 {[%clk 0:03:04.2]}
5... O-O {[%clk 0:03:06.7]} 6. Bd3 {[%clk 0:03:04.2]} 6... Na6 {[%clk
0:03:06.8]} 7. O-O {[%clk 0:03:04]} 7... Bg4 {[%clk 0:03:07.8]} 8. a3 {[%clk
0:03:03.1]} 8... c5 {[%clk 0:03:07.9]} 9. d5 {[%clk 0:03:04.3]} 9... Rc8 {[%clk
0:03:07.5]} 10. h3 {[%clk 0:03:02.9]} 10... Bxf3 {[%clk 0:03:08.2]} 11. Qxf3
{[%clk 0:03:03.4]} 11... c4 {[%clk 0:03:09.7]} 12. Be2 {[%clk 0:03:04.1]} 12...
Nc5 {[%clk 0:03:11.3]} 13. Be3 {[%clk 0:03:04.3]} 13... b5 {[%clk 0:03:11.4]}
14. Rad1 {[%clk 0:02:55.1]} 14... a6 {[%clk 0:03:00.6]} 15. Bd4 {[%clk
0:02:25.8]} 15... Nfd7 {[%clk 0:02:58.7]} 16. Qe3 {[%clk 0:02:17.7]} 16... Qb6
{[%clk 0:02:59.2]} 17. Bxg7 {[%clk 0:02:17.8]} 17... Kxg7 {[%clk 0:03:01.1]} 18.
Qd4+ {[%clk 0:02:19]} 18... f6 {[%clk 0:03:01.1]} 19. Bg4 {[%clk 0:02:17.9]}
19... Rc7 {[%clk 0:03:01.2]} 20. Bxd7 {[%clk 0:02:15.9]} 20... Nxd7 {[%clk
0:03:03.1]} 21. Qxb6 {[%clk 0:02:17.2]} 21... Nxb6 {[%clk 0:03:04.7]} 22. Ne2
{[%clk 0:02:19.1]} 22... Kf7 {[%clk 0:02:52.1]} 23. Nd4 {[%clk 0:02:20]} 23...
Rfc8 {[%clk 0:02:50.7]} 24. g4 {[%clk 0:02:05.9]} 24... Na4 {[%clk 0:02:50.3]}
25. Rb1 {[%clk 0:02:04.3]} 25... c3 {[%clk 0:02:46.4]} 26. b3 {[%clk 0:02:00.1]}
26... Nc5 {[%clk 0:02:45.5]} 27. Rbe1 {[%clk 0:02:00.2]} 27... Nd7 {[%clk
0:02:39]} 28. e5 {[%clk 0:01:46.1]} 28... Nb6 {[%clk 0:02:40]} 29. e6+ {[%clk
0:01:07.9]} 29... Kg7 {[%clk 0:02:36.4]} 30. f5 {[%clk 0:01:09.8]} 30... Nxd5
{[%clk 0:02:36.4]} 31. g5 {[%clk 0:01:09]} 31... fxg5 {[%clk 0:02:34.8]} 32.
fxg6 {[%clk 0:01:10.2]} 32... Kxg6 {[%clk 0:02:35.1]} 33. Rf7 {[%clk 0:01:09.4]}
33... Nf4 {[%clk 0:02:22.9]} 34. Nf5 {[%clk 0:01:03.3]} 34... Nxe6 {[%clk
0:02:16.4]} 35. Rxe7 {[%clk 0:01:04.3]} 35... Nf4 {[%clk 0:02:08.6]} 36. Nxd6
{[%clk 0:00:44.5]} 36... Rxe7 {[%clk 0:02:09.4]} 37. Rxe7 {[%clk 0:00:46.4]}
37... Rd8 {[%clk 0:02:10.9]} 38. Ne4 {[%clk 0:00:46.7]} 38... Rd1+ {[%clk
0:02:05.8]} 39. Kh2 {[%clk 0:00:46.7]} 39... Rc1 {[%clk 0:02:05.9]} 40. Kg3
{[%clk 0:00:41.1]} 40... Rxc2 {[%clk 0:02:04.4]} 41. h4 {[%clk 0:00:37.1]} 41...
h6 {[%clk 0:01:57.1]} 42. hxg5 {[%clk 0:00:35.7]} 42... hxg5 {[%clk 0:01:59]}
43. Rc7 {[%clk 0:00:34.7]} 43... Kf5 {[%clk 0:01:52.2]} 44. Rxc3 {[%clk
0:00:07.2]} 44... Ne2+ {[%clk 0:01:43.4]} 0-1

[Event "*** Titled Tuesday Blitz"]
[Site "Chess.com"]
[Date "2019.03.05"]
[Round "10"]
[White "OparinGrigoriy"]
[Black "Hikaru"]
[Result "0-1"]
[WhiteElo "2973"]
[BlackElo "3133"]
[TimeControl "180+2"]
[EndTime "15:28:55 PST"]
[Termination "Hikaru won by resignation"]

1. Nf3 {[%clk 0:03:01.9]} 1... d5 {[%clk 0:03:00.8]} 2. g3 {[%clk 0:03:03.1]}
2... g6 {[%clk 0:03:02.1]} 3. Bg2 {[%clk 0:03:03.7]} 3... Bg7 {[%clk 0:03:03.3]}
4. d4 {[%clk 0:03:05.4]} 4... Nd7 {[%clk 0:03:04.5]} 5. O-O {[%clk 0:03:05.9]}
5... Ngf6 {[%clk 0:03:06.2]} 6. a4 {[%clk 0:03:07.5]} 6... a5 {[%clk 0:03:05.4]}
7. b3 {[%clk 0:03:08.4]} 7... O-O {[%clk 0:03:05.2]} 8. Bb2 {[%clk 0:03:09.7]}
8... c5 {[%clk 0:03:04.8]} 9. Na3 {[%clk 0:03:04.8]} 9... b6 {[%clk 0:03:02.4]}
10. e3 {[%clk 0:03:04.4]} 10... Ba6 {[%clk 0:03:03]} 11. c4 {[%clk 0:02:58.9]}
11... Rc8 {[%clk 0:03:02.6]} 12. Rc1 {[%clk 0:02:59.6]} 12... e6 {[%clk
0:02:57.7]} 13. Re1 {[%clk 0:02:47.7]} 13... Ne4 {[%clk 0:02:49.7]} 14. cxd5
{[%clk 0:02:28.4]} 14... exd5 {[%clk 0:02:49.2]} 15. Nb5 {[%clk 0:02:29.8]}
15... Bxb5 {[%clk 0:02:26.8]} 16. axb5 {[%clk 0:02:31.7]} 16... Re8 {[%clk
0:02:28.3]} 17. Re2 {[%clk 0:02:24.6]} 17... Qe7 {[%clk 0:02:12.9]} 18. Rec2
{[%clk 0:02:25.6]} 18... Rcd8 {[%clk 0:01:43.7]} 19. Ne1 {[%clk 0:02:13.4]}
19... cxd4 {[%clk 0:01:38.7]} 20. exd4 {[%clk 0:01:22.9]} 20... Bh6 {[%clk
0:01:37.3]} 21. Ra1 {[%clk 0:01:13.5]} 21... Qb4 {[%clk 0:01:28.8]} 22. Rc7
{[%clk 0:00:45.8]} 22... Nf8 {[%clk 0:00:59.8]} 23. Ba3 {[%clk 0:00:30.5]} 23...
Qd2 {[%clk 0:00:59.2]} 24. Nd3 {[%clk 0:00:32.1]} 24... Ne6 {[%clk 0:00:57.3]}
25. Rb7 {[%clk 0:00:21.5]} 25... Qxd1+ {[%clk 0:00:36.3]} 26. Rxd1 {[%clk
0:00:21.9]} 26... Nc3 {[%clk 0:00:38.2]} 27. Ra1 {[%clk 0:00:18.9]} 27... Nxd4
{[%clk 0:00:38.7]} 28. Rxb6 {[%clk 0:00:19.5]} 28... Nc2 {[%clk 0:00:39.7]} 29.
Rc1 {[%clk 0:00:12.3]} 29... Ne2+ {[%clk 0:00:38.3]} 30. Kh1 {[%clk 0:00:09.1]}
30... Nxc1 {[%clk 0:00:39.3]} 31. Bxc1 {[%clk 0:00:11]} 31... Bxc1 {[%clk
0:00:40.4]} 32. Rc6 {[%clk 0:00:12.6]} 32... Nb4 {[%clk 0:00:40.7]} 33. Nxb4
{[%clk 0:00:10.8]} 33... Re1+ {[%clk 0:00:41.6]} 34. Bf1 {[%clk 0:00:12.2]}
34... axb4 {[%clk 0:00:43]} 35. Kg2 {[%clk 0:00:13.5]} 35... Bb2 {[%clk
0:00:42.9]} 36. b6 {[%clk 0:00:14.8]} 36... Re6 {[%clk 0:00:41.2]} 37. Bb5
{[%clk 0:00:12.1]} 37... Rxc6 {[%clk 0:00:41.8]} 38. Bxc6 {[%clk 0:00:14]} 38...
Bd4 {[%clk 0:00:41.9]} 39. b7 {[%clk 0:00:15.1]} 39... Ba7 {[%clk 0:00:43.3]}
0-1

[Event "*** Titled Tuesday Blitz"]
[Site "Chess.com"]
[Date "2019.03.05"]
[Round "10"]
[White "j2806"]
[Black "nfogaras"]
[Result "1-0"]
[WhiteElo "1799"]
[BlackElo "1833"]
[TimeControl "180+2"]
[EndTime "15:28:59 PST"]
[Termination "j2806 won by checkmate"]

1. e4 {[%clk 0:03:01.9]} 1... c5 {[%clk 0:03:00.2]} 2. Nf3 {[%clk 0:03:01.1]}
2... e6 {[%clk 0:03:00.6]} 3. d4 {[%clk 0:02:58.9]} 3... cxd4 {[%clk 0:03:01]}
4. Nxd4 {[%clk 0:02:53.4]} 4... Qb6 {[%clk 0:03:02.2]} 5. Nb3 {[%clk 0:02:38.8]}
5... Qc7 {[%clk 0:03:02.3]} 6. Nc3 {[%clk 0:02:38.3]} 6... a6 {[%clk 0:03:03.7]}
7. Be3 {[%clk 0:02:38.2]} 7... b5 {[%clk 0:03:04.4]} 8. Qd2 {[%clk 0:02:30]}
8... Bb7 {[%clk 0:02:55.7]} 9. f3 {[%clk 0:02:28.4]} 9... d6 {[%clk 0:02:52.6]}
10. O-O-O {[%clk 0:02:27.9]} 10... Be7 {[%clk 0:02:52.4]} 11. g4 {[%clk
0:02:03.8]} 11... Nf6 {[%clk 0:02:41.9]} 12. h4 {[%clk 0:01:54.2]} 12... Nfd7
{[%clk 0:02:27.2]} 13. g5 {[%clk 0:01:50]} 13... Ne5 {[%clk 0:02:08.8]} 14. Bg2
{[%clk 0:01:40.7]} 14... Nc4 {[%clk 0:01:54.7]} 15. Qd3 {[%clk 0:01:36.7]} 15...
Nxe3 {[%clk 0:01:46]} 16. Qxe3 {[%clk 0:01:33.6]} 16... Nd7 {[%clk 0:01:41]} 17.
f4 {[%clk 0:01:20]} 17... Nc5 {[%clk 0:01:34.1]} 18. Nd4 {[%clk 0:01:08.3]}
18... b4 {[%clk 0:01:25.7]} 19. Nce2 {[%clk 0:00:59.4]} 19... O-O {[%clk
0:01:03.2]} 20. h5 {[%clk 0:00:57.4]} 20... Rfc8 {[%clk 0:00:53.6]} 21. Rd2
{[%clk 0:00:34.7]} 21... a5 {[%clk 0:00:38.7]} 22. g6 {[%clk 0:00:33.2]} 22...
fxg6 {[%clk 0:00:28.2]} 23. hxg6 {[%clk 0:00:33.6]} 23... h6 {[%clk 0:00:29.2]}
24. f5 {[%clk 0:00:30.6]} 24... e5 {[%clk 0:00:24.3]} 25. Nb5 {[%clk 0:00:21.4]}
25... Qb6 {[%clk 0:00:25.3]} 26. Nxd6 {[%clk 0:00:17]} 26... Bxd6 {[%clk
0:00:23.7]} 27. Rxh6 {[%clk 0:00:16.1]} 27... Ba6 {[%clk 0:00:14.6]} 28. Rh1
{[%clk 0:00:12.4]} 28... Nd3+ {[%clk 0:00:13.2]} 29. Rxd3 {[%clk 0:00:12.2]}
29... Bxd3 {[%clk 0:00:12]} 30. Qxd3 {[%clk 0:00:13.6]} 30... Rd8 {[%clk
0:00:10.4]} 31. Qd5+ {[%clk 0:00:11.9]} 31... Kf8 {[%clk 0:00:08.1]} 32. Qf7#
{[%clk 0:00:13.4]} 1-0

[Event "*** Titled Tuesday Blitz"]
[Site "Chess.com"]
[Date "2019.03.05"]
[Round "10"]
[White "Hongjin"]
[Black "monalize"]
[Result "0-1"]
[WhiteElo "2498"]
[BlackElo "2341"]
[TimeControl "180+2"]
[EndTime "15:29:00 PST"]
[Termination "monalize won by resignation"]

1. c4 {[%clk 0:03:01.9]} 1... c5 {[%clk 0:02:57.5]} 2. Nc3 {[%clk 0:03:02.2]}
2... b6 {[%clk 0:02:58.4]} 3. g3 {[%clk 0:03:03.2]} 3... Bb7 {[%clk 0:02:59.3]}
4. e4 {[%clk 0:03:03.2]} 4... Nf6 {[%clk 0:02:59.9]} 5. f3 {[%clk 0:03:04.3]}
5... e6 {[%clk 0:03:00]} 6. Bg2 {[%clk 0:03:05.7]} 6... Nc6 {[%clk 0:02:58.7]}
7. Nge2 {[%clk 0:03:06.5]} 7... d5 {[%clk 0:02:57.2]} 8. cxd5 {[%clk 0:03:00.4]}
8... exd5 {[%clk 0:02:57.4]} 9. exd5 {[%clk 0:02:46.9]} 9... Nxd5 {[%clk
0:02:56.8]} 10. f4 {[%clk 0:02:45.6]} 10... Ncb4 {[%clk 0:02:55.8]} 11. O-O
{[%clk 0:02:43]} 11... Qd7 {[%clk 0:02:54.3]} 12. a3 {[%clk 0:02:39.9]} 12...
Nd3 {[%clk 0:02:53.9]} 13. Qb3 {[%clk 0:02:08.8]} 13... Nxc3 {[%clk 0:02:20.3]}
14. Nxc3 {[%clk 0:01:43.5]} 14... Bxg2 {[%clk 0:02:18.6]} 15. Kxg2 {[%clk
0:01:42.5]} 15... O-O-O {[%clk 0:02:05.7]} 16. Qc4 {[%clk 0:01:34.6]} 16... Qb7+
{[%clk 0:02:03.4]} 17. Kh3 {[%clk 0:01:28.8]} 17... Rd4 {[%clk 0:02:02.6]} 18.
Qb5 {[%clk 0:01:24.9]} 18... Bd6 {[%clk 0:01:56.1]} 19. b4 {[%clk 0:01:15.8]}
19... a6 {[%clk 0:01:47.1]} 20. Qa4 {[%clk 0:01:12.8]} 20... b5 {[%clk
0:01:47.1]} 21. Qc2 {[%clk 0:01:09.6]} 21... c4 {[%clk 0:01:43.9]} 22. Bb2
{[%clk 0:01:03.7]} 22... Bb8 {[%clk 0:01:25.4]} 23. Rad1 {[%clk 0:00:51.3]}
23... Rd6 {[%clk 0:01:20.6]} 24. g4 {[%clk 0:00:36.6]} 24... Rh6+ {[%clk
0:00:59.4]} 25. Kg3 {[%clk 0:00:37.5]} 25... g5 {[%clk 0:00:59.9]} 26. Ne2
{[%clk 0:00:36.1]} 26... Rg8 {[%clk 0:00:54.2]} 27. Rf3 {[%clk 0:00:30.6]} 27...
gxf4+ {[%clk 0:00:52.7]} 28. Nxf4 {[%clk 0:00:30.1]} 28... Nxf4 {[%clk
0:00:48.6]} 29. Rxf4 {[%clk 0:00:31.3]} 29... Bxf4+ {[%clk 0:00:46]} 30. Kxf4
{[%clk 0:00:33.2]} 30... Rhg6 {[%clk 0:00:42.2]} 31. h3 {[%clk 0:00:29.4]} 31...
Qd5 {[%clk 0:00:36.4]} 32. Re1 {[%clk 0:00:21.4]} 32... Re6 {[%clk 0:00:35.5]}
33. Rxe6 {[%clk 0:00:18.4]} 33... fxe6 {[%clk 0:00:35.4]} 34. Qxh7 {[%clk
0:00:17.1]} 34... Qxd2+ {[%clk 0:00:35.1]} 35. Kg3 {[%clk 0:00:17.2]} 35... Rf8
{[%clk 0:00:30.8]} 0-1

[Event "*** Titled Tuesday Blitz"]
[Site "Chess.com"]
[Date "2019.03.05"]
[Round "10"]
[White "Jbd735"]
[Black "vinniethepooh"]
[Result "1-0"]
[WhiteElo "2466"]
[BlackElo "2465"]
[TimeControl "180+2"]
[EndTime "15:29:11 PST"]
[Termination "Jbd735 won by resignation"]

1. d4 {[%clk 0:03:01.9]} 1... d5 {[%clk 0:03:00.5]} 2. Nf3 {[%clk 0:03:02.8]}
2... Nf6 {[%clk 0:03:01.2]} 3. Bf4 {[%clk 0:03:01.1]} 3... e6 {[%clk 0:03:00.8]}
4. c3 {[%clk 0:02:59.9]} 4... Bd6 {[%clk 0:02:53.7]} 5. Bxd6 {[%clk 0:02:59.9]}
5... Qxd6 {[%clk 0:02:55.6]} 6. Nbd2 {[%clk 0:03:00]} 6... c5 {[%clk 0:02:56.1]}
7. e3 {[%clk 0:02:52.5]} 7... Nc6 {[%clk 0:02:57.2]} 8. Bd3 {[%clk 0:02:51.8]}
8... e5 {[%clk 0:02:54.4]} 9. dxc5 {[%clk 0:02:50]} 9... Qxc5 {[%clk 0:02:54.6]}
10. e4 {[%clk 0:02:51]} 10... O-O {[%clk 0:02:40.1]} 11. O-O {[%clk 0:02:49.4]}
11... Bg4 {[%clk 0:02:35.7]} 12. h3 {[%clk 0:02:46.8]} 12... Bh5 {[%clk
0:02:30.8]} 13. Qe2 {[%clk 0:02:34.8]} 13... Rad8 {[%clk 0:02:26.7]} 14. Rad1
{[%clk 0:02:33.8]} 14... d4 {[%clk 0:02:12.2]} 15. Nb3 {[%clk 0:02:26]} 15...
Qe7 {[%clk 0:02:13.2]} 16. cxd4 {[%clk 0:02:24.4]} 16... Bxf3 {[%clk 0:02:09.8]}
17. Qxf3 {[%clk 0:02:22.8]} 17... Nxd4 {[%clk 0:02:11.7]} 18. Qe3 {[%clk
0:02:06.8]} 18... Nxb3 {[%clk 0:02:06.3]} 19. axb3 {[%clk 0:02:07.5]} 19... Rd4
{[%clk 0:02:08.2]} 20. Bc4 {[%clk 0:01:54.4]} 20... Rfd8 {[%clk 0:01:56.8]} 21.
Ra1 {[%clk 0:01:23.4]} 21... a6 {[%clk 0:01:55.6]} 22. f3 {[%clk 0:01:22.9]}
22... Nh5 {[%clk 0:01:35.8]} 23. Kh2 {[%clk 0:01:19.4]} 23... Nf4 {[%clk
0:01:33.9]} 24. g3 {[%clk 0:01:15.6]} 24... Rd2+ {[%clk 0:01:15]} 25. Rf2 {[%clk
0:01:15.5]} 25... Rxf2+ {[%clk 0:01:03.9]} 26. Qxf2 {[%clk 0:01:17.4]} 26... Qb4
{[%clk 0:01:04.9]} 27. gxf4 {[%clk 0:01:12]} 27... Rd2 {[%clk 0:01:05.6]} 28.
Be2 {[%clk 0:01:12.8]} 28... exf4 {[%clk 0:00:59.6]} 29. Rd1 {[%clk 0:01:12.8]}
29... g6 {[%clk 0:00:39.8]} 30. Qe1 {[%clk 0:01:11.3]} 30... Rd4 {[%clk
0:00:31.1]} 31. Qxb4 {[%clk 0:01:11.8]} 31... Rxb4 {[%clk 0:00:33]} 32. Bc4
{[%clk 0:01:10]} 32... b5 {[%clk 0:00:32.8]} 33. Bd5 {[%clk 0:01:05.9]} 33... a5
{[%clk 0:00:34.3]} 34. Rd3 {[%clk 0:00:58.6]} 34... Kg7 {[%clk 0:00:35.4]} 35.
Kg2 {[%clk 0:00:59.1]} 35... Kf6 {[%clk 0:00:36.7]} 36. Kf2 {[%clk 0:01:00]}
36... Ke7 {[%clk 0:00:37.2]} 37. Ke2 {[%clk 0:00:58.7]} 37... f6 {[%clk
0:00:39.1]} 38. Kd2 {[%clk 0:00:57.8]} 38... h5 {[%clk 0:00:39.3]} 39. Kc3
{[%clk 0:00:57.1]} 39... g5 {[%clk 0:00:38.9]} 40. Rd1 {[%clk 0:00:53.3]} 40...
Kf8 {[%clk 0:00:30.9]} 41. Ra1 {[%clk 0:00:53]} 41... f5 {[%clk 0:00:28.8]} 42.
Rxa5 {[%clk 0:00:51]} 42... fxe4 {[%clk 0:00:28.1]} 43. Kxb4 {[%clk 0:00:51.7]}
43... e3 {[%clk 0:00:28.5]} 44. Kxb5 {[%clk 0:00:49.7]} 44... g4 {[%clk
0:00:28.6]} 45. hxg4 {[%clk 0:00:50]} 45... h4 {[%clk 0:00:29.9]} 46. Ra1 {[%clk
0:00:49.1]} 46... h3 {[%clk 0:00:30.3]} 47. Bc4 {[%clk 0:00:49.1]} 1-0